Cogmind - Beta 16.1 @@@ ROGUE MODE // 2026.05.01 @ 01:42:47 Player: Mal-2 Result: Destroyed by S-10 Pest with Light Assault Rifle Performance ------------- Evolutions (1) 500 Regions Visited (2) 400 Robots Destroyed (21) 105 Value Destroyed (496) 496 Prototype IDs (0) 0 Alien Tech Used (0) 0 Bonus (0) 0 TOTAL SCORE: 1501 Bonus ------- None Cogmind --------- Core Integrity 0/400 Matter 59/300 Energy 100/100 System Corruption 0% Temperature Cool (0) Movement Core (200) Ox3 Location -9/Materials Parts ------- > --- POWER (2) -------- (None) > --- PROPULSION (3) --- (None) > --- UTILITY (2) ------ Medium Storage Unit Terrain Scan Processor > --- WEAPON (2) ------- (None) > --- INVENTORY (10) --- Aluminum Leg Aluminum Leg Small Storage Unit EM Pulse Gun Faulty Improved Medium Laser Light Assault Rifle Grenade Launcher Grenade Launcher Peak State ------------ > --- POWER ------------ Ion Engine Improved Ion Engine > --- PROPULSION ------- Light Treads Light Treads > --- UTILITY ---------- Medium Storage Unit Terrain Scan Processor > --- WEAPON ----------- Light Assault Rifle Grenade Launcher > --- INVENTORY -------- Aluminum Leg Aluminum Leg Small Storage Unit EM Pulse Gun Small Laser Improved Medium Laser Grenade Launcher Grenade Launcher [Rating: 11] Favorites ----------- Power Ion Engine Engine Ion Engine Propulsion Aluminum Leg Treads Light Treads Leg Aluminum Leg Utility Medium Storage Unit Storage Medium Storage Unit Processor Terrain Scan Processor Weapon Light Assault Rifle Energy Gun Small Laser Ballistic Gun Light Assault Rifle Launcher Grenade Launcher Build | -11 -10 -9 ------- Run | Yrd Mat Mat Slots Evolved 2 | . . 2 Power 1 | . . 1 Propulsion 1 | . . 1 Utility . | . . . Weapon . | . . . Parts Attached 19 | 6 4 9 Power 3 | 1 . 2 Engine 3 | 1 . 2 Core . | . . . Reactor . | . . . Propulsion 4 | 2 . 2 Treads 2 | . . 2 Leg 2 | 2 . . Wheel . | . . . Hover . | . . . Flight . | . . . Utility 5 | 1 3 1 Device . | . . . Storage 4 | 1 3 . Processor 1 | . . 1 Hackware . | . . . Protection . | . . . Artifact . | . . . Weapon 7 | 2 1 4 Energy Gun 1 | . . 1 Energy Cannon . | . . . Ballistic Gun 3 | 2 . 1 Ballistic Cannon . | . . . Launcher 3 | . 1 2 Special Weapon . | . . . Impact Weapon . | . . . Slashing Weapon . | . . . Piercing Weapon . | . . . Special Melee Weapon . | . . . Unidentified Prototypes . | . . . Parts Lost 11 | . 2 9 Power 3 | . 1 2 Propulsion 4 | . . 4 Utility . | . . . Weapon 4 | . 1 3 Highest Loss Streak 6 | . 1 6 To Critical Strikes . | . . . Average Backups 8 | 4 5 9 Power . | . 1 . Propulsion 1 | 1 2 1 Utility 1 | . . 1 Weapon 4 | 2 2 5 Tool/Special . | . . . Unused Backups 7 | . . 7 Power . | . . . Propulsion 2 | . . 2 Utility 1 | . . 1 Weapon 4 | . . 4 Tool/Special . | . . . Average Slot Usage (%) 73 | . 85 69 Engine 11 | . 14 11 Treads 9 | . . 12 Leg 12 | . 28 7 Storage 12 | . 14 11 Processor 4 | . . 5 Ballistic Gun 14 | . 24 11 Launcher 7 | . 3 8 Peak Build Rating 11 | 6 7 11 Average Rating 7 | 2 6 7 On Entrance 4 | . 6 6 Avg Prop Armor Cover (%) . | . . . Naked Turns . | . . . Heaviest Build 34 | 12 34 26 Greatest Support 40 | 20 20 40 Greatest Overweight (x) 3 | . 1 3 Average Overweight (x) . | . . . Largest Inventory Capacity 15 | 8 15 10 Average Capacity 9 | 6 8 10 Most Carried 10 | 6 10 10 Average Carried 8 | 4 5 9 Final Capacity 10 | 8 10 10 Final Carried 10 | 4 10 8 Class Distribution -------------------- 100% | Mutant Dominant Class ---------------- Mutant | -10/Materials Mutant | -9/Materials Resources | -11 -10 -9 ----------- Run | Yrd Mat Mat Matter Collected 410 | 239 49 122 Remotely . | . . . Salvage Created 353 | . 131 222 Parts 30 | . 9 21 Haulers Intercepted . | . . . Recyclers Shooed 4 | . 2 2 Parts Field Recycled . | . . . Retrieved Matter . | . . . Parts Self-Destructed . | . . . Prevented . | . . . Parts Restored . | . . . Kills | -11 -10 -9 ------- Run | Yrd Mat Mat Combat Hostiles Destroyed 16 | . 7 9 Guns 5 | . 3 2 AOE 11 | . 4 7 Classes Destroyed 7 | . 3 4 Worker 1 | . 1 . Builder 2 | . . 2 Mechanic 1 | . . 1 Watcher 1 | . . 1 Swarmer 5 | . 3 2 Grunt 9 | . 4 5 Sentry 2 | . . 2 Best Kill Streak 7 | . 6 7 Combat Bots Only 5 | . 5 5 Max Kills in Single Turn 5 | . 3 5 Gunslinging . | . . . Exploded 3 | . 2 3 Melee . | . . . Uniques/NPCs Destroyed . | . . . Combat | -11 -10 -9 -------- Run | Yrd Mat Mat Hostile Shots Fired 250 | . 65 185 Missed 79 | . 18 61 Hits 171 | . 47 124 Projectile 171 | . 47 124 Critical Strikes 2 | . . 2 Damage Taken 1656 | . 497 1159 Core 535 | . 127 408 Absorbed by Shields . | . . . Core Remaining (%) 74 | 100 49 . Volleys Fired 45 | . 24 21 Largest 2 | . 2 2 Hottest 60 | . 50 60 Shots Fired 87 | . 47 40 Gun 63 | . 42 21 Cannon . | . . . Launcher 24 | . 5 19 Special . | . . . Kinetic 61 | . 42 19 Thermal 2 | . . 2 Explosive 24 | . 5 19 Electromagnetic . | . . . Robot Hit Streak 8 | . 4 8 Robot Miss Streak 7 | . 4 7 Penetration Max . | . . . Secondary Targets . | . . . Shots Hit Robots 46 | . 25 21 Core Hits 42 | . 15 27 Critical Kills . | . . . Critical Parts Destroyed . | . . . Critical Strikes . | . . . Melee Attacks . | . . . Impact . | . . . Slashing . | . . . Piercing . | . . . Sneak Attacks . | . . . Combat Hostiles . | . . . Follow-up Attacks . | . . . Damage Inflicted 1389 | . 585 804 Guns 324 | . 246 78 Cannons . | . . . Explosions 1041 | . 339 702 Melee . | . . . Ramming 24 | . . 24 Kinetic 313 | . 246 67 Thermal 11 | . . 11 Explosive 1041 | . 339 702 Electromagnetic . | . . . Impact . | . . . Slashing . | . . . Piercing . | . . . Highest Corruption . | . . . Average Corruption . | . . . Corruption Purged . | . . . Corruption Blocked . | . . . Overload Shots . | . . . Overflow Damage 36 | . 1 35 Projectiles . | . . . Explosions 36 | . 1 35 Melee . | . . . Knockbacks . | . . . Impact . | . . . Kinetic . | . . . Secondary . | . . . Self-Inflicted Damage 101 | . 41 60 Shots 5 | . 3 2 Rammed 9 | . . 9 Targets Rammed 10 | . . 10 Kicked 1 | . . 1 Crushed . | . . . Highest Temperature 26 | . 26 16 Average Temperature 8 | . 9 6 Received Heat Transfer 267 | . 150 117 Siege Activations . | . . . Martial Activations . | . . . Shielding Activations . | . . . Robots Disrupted . | . . . Combat Hostiles . | . . . Robots Corrupted . | . . . Combat Hostiles . | . . . Parts Fried . | . . . Impact Corruptions . | . . . Robots Melted . | . . . Combat Hostiles . | . . . Parts Melted . | . . . Heat Transferred 25 | . . 25 Parts Sabotaged . | . . . Parts Stolen . | . . . Parts Stripped . | . . . Power Chain Reactions . | . . . Alert | -11 -10 -9 ------- Run | Yrd Mat Mat Maximum Alert Level . | . . . Low Security (%) 100 | 100 100 100 Level 1 . | . . . Level 2 . | . . . Level 3 . | . . . Level 4 . | . . . Level 5 . | . . . High Security . | . . . Max Security . | . . . Peak Influence 169 | . 131 169 Initial 38 | . . 38 Average 37 | . 33 42 Influence Increases 570 | . 181 389 Destroy 0b10 Robot/C 320 | . 140 180 Destroy 0b10 Robot/NC 25 | . 5 20 Destroy Leader 62 | . 20 42 Disable Machine 15 | . . 15 Destroy Structure 103 | . 16 87 Lose Combat Pursuer 45 | . . 45 Influence Decreases 454 | . 90 364 Entered New Map 53 | . . 53 Time Decay 317 | . 80 237 Lost Part 84 | . 10 74 Squads Dispatched 2 | . 1 1 Investigation . | . . . Extermination . | . . . Reinforcement 2 | . 1 1 Assault . | . . . Garrison . | . . . Intercept . | . . . Searches Triggered . | . . . Construction Impeded 1 | . . 1 Haulers Reinforced . | . . . Active Scanning Responses . | . . . Cargo Convoy Interrupts . | . . . Stealth | -11 -10 -9 --------- Run | Yrd Mat Mat Distress Signals 1 | . . 1 Communications Jammed . | . . . Distress Signals . | . . . Times Spotted 39 | . 14 25 Peak Tracking Total 7 | . 6 7 Tactical Retreats 2 | . . 2 Traps | -11 -10 -9 ------- Run | Yrd Mat Mat Traps Triggered 1 | . . 1 Indirectly . | . . . Trap Hack Attempts . | . . . Triggered . | . . . Disarmed . | . . . Reprogrammed . | . . . Reused . | . . . Traps Extracted . | . . . Installed . | . . . Triggered . | . . . Machines | -11 -10 -9 ---------- Run | Yrd Mat Mat Machines Disabled 1 | . . 1 Max in Single Turn 1 | . . 1 Machines Repaired . | . . . Machines Dismantled . | . . . Machines Sabotaged . | . . . Overloaded Fab Kills . | . . . Hacking | -11 -10 -9 --------- Run | Yrd Mat Mat Machines Accessed 3 | . . 3 Terminals 2 | . . 2 Fabricators . | . . . Repair Stations 1 | . . 1 Recycling Units . | . . . Scanalyzers . | . . . Garrison Access . | . . . Total Hacks 4 | . . 4 Successful 3 | . . 3 Failed 1 | . . 1 Catastrophic . | . . . Database Lockouts . | . . . Manual . | . . . Terminals 2 | . . 2 Fabricators . | . . . Repair Stations 2 | . . 2 Recycling Units . | . . . Scanalyzers . | . . . Garrison Access . | . . . Terminal Hacks 2 | . . 2 Maintenance Status 1 | . . 1 Zone Layout 1 | . . 1 Fabricator Hacks . | . . . Repair Station Hacks 1 | . . 1 Scan Component 1 | . . 1 Recycling Unit Hacks . | . . . Scanalyzer . | . . . Garrison Access Hacks . | . . . Unauthorized Hacks . | . . . Terminals . | . . . Fabricators . | . . . Repair Stations . | . . . Recycling Units . | . . . Scanalyzers . | . . . Garrison Access . | . . . Data Cores Recovered . | . . . Used . | . . . Hacking Detections 1 | . . 1 Full Trace Events . | . . . Feedback Events . | . . . Feedback Blocked . | . . . Robot Schematics Acquired . | . . . Robots Built . | . . . Authchips . | . . . Time . | . . . Total Robot Build Rating . | . . . Part Schematics Acquired . | . . . Parts Built . | . . . Authchips . | . . . Time . | . . . Total Part Build Rating . | . . . Part Studies Acquired . | . . . Parts Repaired . | . . . Time . | . . . Parts Recycled . | . . . Recycled Matter . | . . . Retrieved Matter . | . . . Retrieved Components . | . . . Parts Scanalyzed . | . . . Part Schematics Acquired . | . . . Parts Damaged . | . . . Bothacking | -11 -10 -9 ------------ Run | Yrd Mat Mat Used RIF Installer . | . . . Robots Hacked . | . . . Non-combat . | . . . Combat . | . . . Robot Hacks Applied . | . . . Relay Couplers Released . | . . . Fabnet Peak Effective % . | . . . Robots Rewired . | . . . Allies Hacked . | . . . Hacks Repelled . | . . . Allies | -11 -10 -9 -------- Run | Yrd Mat Mat Total Allies . | . . . Largest Group . | . . . Highest-Rated Group . | . . . Highest-Rated Ally . | . . . Total Orders . | . . . Ally Attacks . | . . . Total Damage . | . . . Kills . | . . . Allies Corrupted . | . . . Allies Melted . | . . . Intel | -11 -10 -9 ------- Run | Yrd Mat Mat Active Infowar (turns) . | . . . Robot Analysis Total . | . . . Derelict Logs Recovered . | . . . Drone Launches . | . . . Drone Recoveries . | . . . Exploration | -11 -10 -9 ------------- Run | Yrd Mat Mat Turns Passed 1281 | 81 309 891 Spaces Moved 743 | 65 194 484 Core 35 | 18 . 17 Treads 289 | . . 289 Legs 419 | 47 194 178 Wheels . | . . . Hover . | . . . Flight . | . . . Fastest Speed 50 | 50 120 120 Average Speed 146 | 100 120 162 Slowest Speed 260 | 120 190 260 Overloaded Moves . | . . . Propulsion Burnouts . | . . . Robots Hopped . | . . . Potential Cave-ins . | . . . Cave-ins Triggered . | . . . Exploration Rate (%) 24 | 3 36 34 Regions Visited 2 Branch Regions . Pre-discovered Areas . | . . . Known Exits Taken . | . . . Unknown Exits Taken 2 | 1 1 . Scrap Searched . | . . . Spaces Dug . | . . . Terrain Destroyed 131 | . 21 110 Melee . | . . . Projectile . | . . . AOE 131 | . 21 110 Terrain Rammed . | . . . Walls Destroyed . | . . . Machines Disabled . | . . . Actions | -11 -10 -9 --------- Run | Yrd Mat Mat Total 857 | 80 231 546 Wait . | . . . Move 741 | 64 193 484 Hop . | . . . Pick Up 29 | 10 8 11 Fast Attach . | . . . Attach 17 | 6 2 9 Detach 2 | . 1 1 Swap 7 | . 2 5 Drop 6 | . 1 5 Fire 45 | . 24 21 Melee . | . . . Ram 2 | . . 2 Kick 1 | . . 1 Crush 7 | . . 7 Escape Stasis . | . . . Rewire . | . . . Trap . | . . . Miscellaneous . | . . . Route ------- -11/Scrapyard -10/Materials -9/Materials (discovered 1 exit: [Mat]) History --------- Turn | Location | Event 5 | -11/Scrapyard | Discovered new exit (range 15) 82 | -11/Scrapyard | Entered Materials 329 | -10/Materials | Build established: Mutant 358 | -10/Materials | Discovered new exit (range 8) 390 | -10/Materials | Core integrity fell below 50% 391 | -10/Materials | Entered another Materials area 391 | -9/Materials | Evolved 2 slots: Power x1, Propulsion x1 1129 | -9/Materials | Discovered new exit (range 14) 1259 | -9/Materials | Core integrity fell below 50% 1274 | -9/Materials | Core integrity fell below 20% 1282 | -9/Materials | Destroyed by S-10 Pest with Light Assault Rifle Last Messages --------------- 5 Recyclers Downloaded coordinate data. U-05 Engineer lays Concrete. U-05 Engineer builds a Wall. Connecting with Repair Station... >>Scan(Med. Storage Unit) Scanning Med. Storage Unit... Ready to Repair: Med. Storage Unit Rating: 1 Time: 26 S-10 Pest destroyed. Grenade Launcher destroyed. Imp. Ion Engine destroyed. Ion Engine destroyed. S-10 Pest destroyed. Lgt. Treads destroyed. Sml. Laser destroyed. Slammed into S-10 Pest. Acquired 19 matter. Map ----- +----------------------------------------------------+ | ??#+##+###########################??????????? | | ??# ^ ## # # ??????????? | | ??+ ## """ # < # ??????????? | | ??# [ ## "R # # ??????????? | | ??## ############ ## """ + + ??????????? | | ???# ############ ## # # ??????????? | | ???# ## ## [ [ # # ??????????? | | ???# ## # ###### ##??????????? | | #### ## # # # # #??????????? | | ## """ # #??????????? | | #### ## """ + #??????????? | | ??? ## """ # #??????????? | | ??? ## """ # # ### #??????????? | | ?? ## """ ## # #######+###??????????? | | ?? ## ## ## ??????????? | | ?! ############ # ! / ## ??????????? | | ?! #??????????# ## ## ??????????? | | #### #??????????# ## ## ??????????? | | ???# #??????????# ##! ## """ "??????????? | | ???# ############ ## ""## """ "??????????? | | ???# ## # ## T"## """ "??????????? | | ???# ##" # ## ""## ??????????? | | ??? ##T """ # ## #####+##?#+#??????? | | ???# ##" """"" + ###+####### #### #??????? | | ???# ## """"" # sss #??????? | | ???# ## """"" # @ s = ####???? | | ????????????????# s [ #???? | | ????????????????# ###### #???? | | ????????????????# !!! """#?# #???? | | ????????????????# !!! R"#?# #???? | | ???????????????#T !!! """#?# #???? | | ???????????????## ######/##+## #???? | | ????????????????# ## #? #???? | | ????????????????# """ ## #??#???? | | ??????????????? """ ## #??????? | | ?????????????! """ # #??????? | | ????????????!! # = =*] #??????? | | ????????????!! ? # =*] #??????? | | ?????????????= ?? # =] #??????? | | ??????????????????###"T"# # #??????? | | ????????????????????#"""#* # #??????? | | ??????????????????????###%[ #####+####??????? | | ?????????????????????????= ??? ??????????? | | ????????????????????????? ??? ??????????? | | ????????????????????????? ??? ??????????? | | ???????????????????????????????##???????????? | | ????????????????????????????????????????????? | | ????????????????????????????????????????????? | | ????????????????????????????????????????????? | | ????????????????????????????????????????????? | +----------------------------------------------------+ Best States ------------- Heat Dissipation 28 Energy Generation 17 Energy Capacity 415 Matter Stores 300 Matter Capacity 300 Sight Range 16 Terrain Scan Density 85 Evasion (%) 55 Recoil Reduction 2 Item Schematics ----------------- None Robot Schematics ------------------ None Fabricated ------------ Nothing Repaired ---------- Nothing Studied --------- None Alien Tech Used ----------------- None Achievements -------------- None Challenges ------------ None Game ------ Seed LightningRegenerativeScreen Manual? 0 Play Time 00:24:17 Cumulative 2.3 hours Start 2026.05.01 @ 01:12:25 End 2026.05.01 @ 01:42:47 Sessions 1 Manual Loads 0 Difficulty Rogue Special Mode None Game No. 5 Rogue 5 Adventurer 0 Explorer 0 Win Type - Total 0 Types 0/0/0/0/0/0/0/0/0/0 Lore% 0 Gallery% 3 Achievement% 4 Wizard Run 0 Options --------- Layout 1 ASCII 0 Keyboard 1 Movement Numpad Keybinds 0 Fullscreen 2 Font 24/Smallcaps Map View 50x35 Zoom Use 0% Tactical HUD 0 Map Filters NONE Filters NONE Steam 1 RUN: 25ac298a-5db6-4916-be46-638afd2d0b8e